bitfinex/quotes_ETHUSD_20220213
["timestamp","ask_amount","ask_price","bid_price","bid_amount"]
[1644761989999,4.06184782,2942.1,2940.9,1.09232783]
[1644761990202,3.89184782,2942.1,2941.3,0.01096355]
[1644761991045,4.73195038,2942.1,2941.3,0.01096355]
[1644761991245,4.73195038,2942.1,2940.9,1.09232783]
[1644761991443,0.85013,2942.0,2941.3,0.01096355]
[1644761991642,0.96011629,2941.6,2941.3,0.01096355]
[1644761991843,3.2854417,2941.5,2941.3,0.01096355]
[1644761992242,0.96011629,2941.6,2941.3,0.01096355]
[1644761992446,0.96011629,2941.6,2940.5,1.10017]
[1644761992447,3.26126126,2941.5,2940.5,1.10017]
[1644761992649,3.26126126,2941.5,2941.3,0.01096297]
[1644761993248,4.11150126,2941.5,2941.3,0.01096297]
[1644761993448,3.49165531,2941.4,2941.3,0.01096297]
[1644761993648,3.49165531,2941.4,2940.4,1.25]
[1644761993848,3.49165531,2941.4,2941.3,0.01096297]
[1644761994889,3.49165531,2941.4,2940.4,0.8502]
[1644761995089,3.49165531,2941.4,2941.2,0.01096306]
[1644761995289,4.18400035,2941.6,2941.2,0.01096306]
[1644761995688,0.0219306,2941.5,2941.2,0.01096306]
[1644761995892,0.0219306,2941.5,2940.4,0.25]
[1644761996094,0.0219306,2941.5,2939.9,1.70046]
[1644761996393,0.0219306,2941.5,2941.2,0.01096306]
[1644761997194,0.0219306,2941.5,2940.5,0.9569113]
[1644761997395,0.0219306,2941.5,2941.2,0.01096306]
[1644761997794,3.48664595,2941.5,2941.2,0.01096306]
[1644761997998,0.85027,2941.4,2941.2,0.01096306]
[1644761998200,3.5442399,2941.3,2941.2,0.01096306]
[1644761998455,3.7140399,2941.3,2939.1,2.45651982]
[1644761998642,3.2531,2941.2,2940.5,0.04386208]
[1644761998840,3.14581391,2941.1,2940.5,0.04386208]
[1644761999040,0.85736551,2941.1,2940.5,0.04386208]
[1644761999239,4.02040558,2941.1,2940.5,0.04386208]
[1644761999441,0.85736551,2941.1,2940.5,0.04386208]
[1644761999740,0.85736551,2941.1,2940.5,0.85012]
[1644761999940,0.85736551,2941.1,2940.7,0.01096405]
[1644762000741,0.85736551,2941.1,2940.6,0.85009]
[1644762000941,0.85736551,2941.1,2940.8,0.01096387]
[1644762001145,0.0219306,2941.5,2940.8,0.01096387]
[1644762001146,3.32770863,2941.5,2940.8,0.01096387]
[1644762001344,3.1812734,2941.5,2940.8,0.01096387]
[1644762001744,0.17,2941.4,2940.8,0.01096387]
[1644762001946,0.17,2941.4,2940.2,1.7004]
[1644762002193,0.17,2941.4,2941.0,0.01096342]
[1644762002997,1.15212961,2941.3,2941.0,0.01096342]
[1644762003198,1.06300168,2940.8,2940.2,0.85021]
[1644762003397,1.06300168,2940.8,2940.5,0.04386131]
[1644762004098,3.17489154,2940.7,2940.5,0.04386131]
[1644762004496,3.17489154,2940.7,2940.1,0.013208]
[1644762004697,3.17489154,2940.7,2940.5,0.01096441]
[1644762005702,4.87574154,2940.7,2940.1,0.013208]
[1644762005951,4.02529154,2940.7,2940.5,0.01096441]
[1644762006142,3.4838957,2940.6,2940.5,0.01096441]
[1644762006745,3.4838957,2940.6,2940.1,0.013208]
[1644762006945,1.74967807,2940.3,2940.1,0.013208]
[1644762007146,3.017,2941.1,2940.5,1.65032193]
[1644762007147,0.17,2941.0,2940.5,1.65032193]
[1644762007344,1.08812787,2940.9,2940.5,1.65384501]
[1644762007545,3.84537647,2940.8,2940.5,1.65032193]
[1644762007746,0.8505,2940.7,2940.5,1.65032193]
[1644762007944,4.28381604,2940.6,2940.5,1.65032193]
[1644762008143,4.58381604,2940.6,2940.5,1.65032193]
[1644762008348,4.28381604,2940.6,2940.5,1.66128625]
[1644762009244,5.50062,2940.5,2940.1,0.013208]
[1644762009446,4.43771496,2940.4,2940.1,0.013208]
[1644762009895,4.26771496,2940.4,2940.1,0.013208]
[1644762010095,1.23512719,2940.3,2940.1,0.013208]
[1644762010295,3.53507073,2940.2,2940.1,0.013208]
[1644762010703,3.53507073,2940.2,2940.1,0.02417314]
[1644762011700,1.02047,2940.5,2940.1,0.013208]
[1644762011701,3.97447643,2940.4,2940.1,0.013208]
[1644762012501,4.82498643,2940.4,2940.1,0.013208]
[1644762012701,5.67549643,2940.4,2940.1,0.013208]
[1644762013101,0.17,2940.3,2940.1,0.013208]
[1644762013302,4.99498643,2940.4,2940.1,0.02417304]
[1644762013550,1.70127,2940.3,2940.1,0.02417304]
[1644762013747,3.64300211,2940.2,2940.1,0.02417304]
[1644762013946,3.64300211,2940.2,2940.1,0.013208]
[1644762016749,3.94300211,2940.2,2940.1,0.013208]
[1644762017691,4.11300211,2940.2,2940.1,2.65894226]
[1644762017896,6.35146,2940.1,2939.6,0.00352308]
[1644762018092,0.85075,2940.0,2939.6,0.00352308]
[1644762018292,0.85075,2940.0,2938.8,0.00352308]
[1644762018492,7.37222,2940.1,2938.8,0.00352308]
[1644762018493,3.5,2939.9,2938.8,0.00352308]
[1644762019094,0.8508,2939.4,2939.2,0.01055962]
[1644762019897,3.82672224,2939.3,2939.2,0.01055962]
[1644762020098,0.85093,2939.2,2938.8,0.00352308]
[1644762020299,1.15802734,2939.0,2938.2,0.00352308]
[1644762020498,3.49700547,2939.2,2938.0,0.94576826]
[1644762020698,3.49700547,2939.2,2937.9,0.25]
[1644762020951,3.49700547,2939.2,2938.1,0.85086]
[1644762021145,3.82845699,2939.7,2938.1,0.85086]
[1644762021352,1.70153,2939.5,2938.4,0.85079]
[1644762021549,3.60194473,2939.4,2938.4,0.85079]
[1644762021948,0.86173325,2939.3,2937.9,0.25]
[1644762022147,3.5,2939.2,2937.9,0.25]
[1644762022349,3.5,2939.2,2937.3,2.61351773]
[1644762022350,0.85112,2938.5,2937.3,0.17704278]
[1644762022551,0.85113,2938.4,2937.3,0.17704278]
[1644762022949,3.5,2938.3,2937.3,0.17704278]
[1644762023351,0.85113,2938.3,2937.3,0.17704278]
[1644762023551,0.85116,2938.2,2937.3,0.17704278]
[1644762023750,0.85122,2938.1,2937.3,0.17704278]
[1644762023953,0.85122,2938.1,2937.7,0.01033761]
[1644762024151,3.30034289,2938.0,2937.7,0.01033761]
[1644762024792,3.30034289,2938.0,2937.3,0.17704278]
[1644762024992,5.00283289,2938.0,2937.3,0.17704278]
[1644762025194,3.30034289,2938.0,2937.7,0.01033752]
[1644762025894,0.1701,2938.2,2937.7,0.01033752]
[1644762026096,1.70256,2938.2,2937.3,0.17704278]
[1644762026296,4.94173724,2938.1,2937.7,0.01043122]
[1644762026501,0.85122,2938.0,2937.7,0.01043122]
[1644762026700,5.82648924,2937.9,2937.7,0.01043122]
[1644762026897,3.69195156,2937.8,2937.7,0.01043122]
[1644762027399,3.69195156,2937.8,2937.3,0.17704278]
[1644762027596,5.39461156,2937.8,2937.6,0.00525634]
[1644762027796,3.49550359,2937.7,2937.6,0.00525634]
[1644762028199,0.1701,2938.0,2937.6,0.00525634]
[1644762028453,3.25112996,2938.1,2937.6,0.7]
[1644762028645,0.1701,2938.0,2937.6,0.7]
[1644762028843,3.25112996,2938.1,2937.7,0.00525625]
[1644762029046,2.55385,2938.0,2937.7,0.00525625]
[1644762029243,23.87661207,2937.9,2937.7,0.00525625]
[1644762029444,4.15782658,2937.8,2937.7,0.00525625]
[1644762029643,4.15782658,2937.8,2937.3,0.17704278]
[1644762029843,3.98772658,2937.8,2937.3,0.17704278]
[1644762030042,3.98772658,2937.8,2937.6,0.0109532]
[1644762030043,5.69030658,2937.8,2937.6,0.0109532]
[1644762030443,4.92473956,2937.7,2937.6,0.0109532]
[1644762030643,5.09483956,2937.7,2937.6,0.0109532]
[1644762030845,5.09483956,2937.7,2937.3,0.17704278]
[1644762031049,5.77614956,2937.7,2937.3,0.17704278]
[1644762031246,5.77614956,2937.7,2937.5,0.01095337]
[1644762031446,4.25299037,2937.6,2937.5,0.01095337]
[1644762031946,3.16323104,2937.8,2937.5,0.01095337]
[1644762032191,4.01454104,2937.8,2937.3,0.17704278]
[1644762032389,4.01454104,2937.8,2937.4,0.01095355]
[1644762032990,0.85137,2937.7,2937.4,0.01095355]
[1644762033191,3.39149076,2937.6,2937.4,0.01095355]
[1644762033390,3.39149076,2937.6,2937.3,0.17704278]
[1644762033798,0.02694578,2937.8,2937.3,0.17704278]
[1644762034200,0.85136,2937.6,2937.3,0.17704278]
[1644762034396,3.48127263,2937.5,2937.3,0.17704278]
[1644762035798,0.8514,2937.4,2937.3,0.17704278]
[1644762036044,0.8514,2937.4,2937.3,0.1822943]
[1644762036045,4.48040836,2937.4,2937.3,0.1822943]
[1644762036248,3.43249786,2937.6,2937.3,0.1822943]
[1644762036249,0.02685786,2937.6,2937.3,0.1822943]
[1644762036749,0.02685786,2937.6,2937.3,1.0333743]
[1644762036946,0.02685786,2937.6,2937.3,0.17704278]
[1644762037145,0.02685786,2937.6,2937.5,1.08965108]
[1644762037747,0.02685786,2937.6,2937.3,0.18580809]
[1644762037946,0.02685786,2937.6,2937.3,0.18229421]
[1644762038245,0.02685786,2937.6,2937.3,0.17704278]
[1644762038448,0.02685786,2937.6,2937.3,0.18799672]
[1644762038846,0.02685786,2937.6,2937.4,1.04386796]
[1644762039696,0.02685786,2937.6,2937.4,1.05482182]
[1644762040490,0.02685786,2937.6,2937.4,1.04386796]
[1644762040894,0.02685786,2937.6,2937.4,1.05482182]
[1644762041808,3.40373,2939.5,2937.6,4.65]
[1644762042003,0.01094829,2938.8,2937.8,5.0]
[1644762042202,0.01094829,2938.8,2937.9,0.3]
[1644762042398,0.01094829,2938.8,2937.8,0.00351388]
[1644762042800,1.11454694,2938.3,2938.0,1.7018]
[1644762043206,1.11454694,2938.3,2938.2,0.01095243]
[1644762043649,0.1701,2938.7,2938.2,0.01095243]
[1644762044241,0.1701,2938.7,2938.1,0.00351388]
[1644762044446,0.01095013,2938.8,2938.3,0.01095216]
[1644762044843,1.03620048,2938.7,2938.3,0.01095216]
[1644762045244,0.01095013,2938.8,2938.3,0.01095216]
[1644762045542,3.36649997,2939.2,2938.3,0.00351388]
[1644762045844,0.01095023,2938.8,2938.4,0.01095207]
[1644762046246,0.01095023,2938.8,2938.5,0.85094]
[1644762046645,3.53659997,2939.2,2938.5,0.85094]
[1644762046846,0.01095052,2938.8,2938.5,0.86540568]
[1644762047048,0.01095052,2938.8,2938.5,0.8618918]
[1644762047705,0.75861431,2939.0,2938.5,0.8618918]
[1644762047905,0.13819997,2939.2,2938.5,0.85445388]
[1644762048104,0.01095052,2938.8,2938.5,0.86540568]
[1644762048306,0.01095052,2938.8,2938.6,3.35273375]
[1644762048507,0.01095052,2938.8,2938.7,0.85079]
[1644762048708,0.01095052,2938.8,2938.7,4.39206616]
[1644762048907,0.01095052,2938.8,2938.7,5.39206616]
[1644762049108,1.01201907,2939.4,2938.7,1.85079]
[1644762049407,1.01201907,2939.4,2938.8,0.85433388]
[1644762049611,1.01201907,2939.4,2938.9,0.85082]
[1644762050008,0.851,2940.0,2938.9,0.85082]
[1644762050309,7.8197,2940.3,2939.1,0.85073]
[1644762050310,0.1701,2939.8,2939.1,0.85073]
[1644762050507,0.00570787,2939.3,2939.1,0.85073]
[1644762050709,0.00570787,2939.3,2939.2,0.85066]
[1644762050956,0.00570787,2939.3,2939.2,4.19735512]
[1644762051149,0.00570787,2939.3,2939.2,0.85066]
[1644762051357,2.7,2940.0,2939.2,0.85066]
[1644762051551,2.7,2940.0,2939.0,0.8924728]
[1644762051552,2.7,2940.0,2939.5,0.85059]
[1644762051850,0.69319331,2939.1,2939.0,1.7430428]
[1644762052255,0.69319331,2939.1,2939.0,2.7430428]
[1644762052452,3.5,2940.2,2939.1,4.65]
[1644762052750,3.5,2940.5,2939.3,2.30096]
[1644762052950,1.44704124,2940.4,2939.3,2.30096]
[1644762053250,1.15687482,2940.1,2939.4,0.85048]
[1644762054151,0.00525801,2939.9,2939.6,0.85059]
[1644762054352,0.00525801,2939.9,2939.6,1.85059]
[1644762054802,0.00525801,2939.9,2939.6,2.70105]
[1644762055003,0.91269934,2940.4,2939.7,0.17]
[1644762055204,0.00525801,2939.9,2939.7,1.87093]
[1644762055404,0.00525801,2939.9,2939.8,1.7009]
[1644762055605,0.00525801,2939.9,2939.6,0.85059]
[1644762055805,0.00525801,2939.9,2939.2,0.17]
[1644762056104,0.00525801,2939.9,2938.9,1.0]
[1644762056105,0.00525801,2939.9,2938.9,1.77]
[1644762056305,3.31719482,2940.3,2938.9,0.17]
[1644762056506,3.31719482,2940.3,2938.8,0.25]
[1644762056507,0.01060197,2939.7,2938.8,0.25]
[1644762056706,0.01060197,2939.7,2938.7,0.17]
[1644762057309,1.4473961,2939.6,2938.7,1.02084]
[1644762057508,3.5,2939.8,2938.7,1.02084]
[1644762057807,0.0106026,2939.3,2938.8,1.75760727]
[1644762058210,0.0106026,2939.3,2938.8,2.60837727]
[1644762058648,3.5,2939.8,2938.8,2.60837727]
[1644762058939,0.89394648,2939.9,2938.9,0.85066]
[1644762058940,0.01060287,2939.2,2938.9,0.85066]
[1644762059340,0.1701,2940.0,2939.1,0.85069]
[1644762059539,0.1701,2940.0,2939.2,1.70115]
[1644762059540,1.44726377,2939.9,2939.2,1.70115]
[1644762059740,1.44726377,2939.9,2939.3,0.85058]
[1644762060141,0.17,2940.1,2939.3,0.85058]
[1644762060441,0.17,2940.1,2939.6,0.85054]
[1644762060641,0.93252629,2940.3,2939.6,0.85054]
[1644762060844,1.44714153,2940.2,2939.7,3.27042079]
[1644762061046,0.13819997,2940.9,2939.7,4.29097079]
[1644762061246,1.44692807,2940.8,2939.7,4.29097079]
[1644762061443,1.44692807,2940.8,2939.7,4.12097079]
[1644762061644,1.44692807,2940.8,2940.0,1.70077]
[1644762061846,1.44692807,2940.8,2940.1,1.01776565]
[1644762062045,1.44692807,2940.8,2940.3,0.85039]
[1644762062892,1.44692807,2940.8,2939.7,0.17]
[1644762063094,1.74692807,2940.8,2939.8,2.55141]
[1644762063293,1.24672471,2940.9,2939.8,2.55141]
[1644762063294,1.44692807,2940.7,2939.8,2.55141]
[1644762063494,0.96973348,2940.2,2939.8,1.70087]
[1644762063693,0.01095257,2940.4,2939.8,1.70087]
[1644762064093,0.01095257,2940.4,2939.9,0.8505]
[1644762064395,0.01095257,2940.4,2939.9,5.05375043]
[1644762064594,0.13819997,2940.9,2939.9,6.22375043]
[1644762064893,0.01095284,2940.3,2939.9,7.14185111]
[1644762065101,0.01095284,2940.3,2940.0,0.85036]
[1644762065297,0.01095284,2940.3,2940.0,1.70074]
[1644762065955,1.1825473,2940.7,2940.0,1.70074]
[1644762066146,0.01095284,2940.3,2940.0,1.70074]
[1644762066948,0.01095284,2940.3,2940.1,0.85037]
[1644762067152,1.1825473,2940.7,2940.2,2.55105]
[1644762067350,0.01095284,2940.3,2940.2,2.55105]
[1644762067950,0.01095284,2940.3,2940.2,6.00296018]
[1644762068150,0.01095284,2940.3,2940.2,5.89146563]
[1644762068351,0.17,2941.0,2940.3,1.70041]
[1644762068551,0.17,2941.0,2940.4,4.21218205]
[1644762068752,0.17,2941.0,2940.4,0.85028]
[1644762069052,0.17,2941.0,2940.5,0.85033]
[1644762069453,0.17,2941.0,2940.6,3.27020202]
[1644762069693,0.17,2941.0,2940.6,0.85026]
[1644762069694,0.01095177,2940.9,2940.6,0.85026]
[1644762069890,0.01095177,2940.9,2940.5,0.85033]
[1644762070093,0.01095177,2940.9,2940.3,0.85038]
[1644762070592,0.9412146,2941.0,2940.2,0.85043]
[1644762070997,0.01095204,2940.7,2940.2,0.85043]
[1644762071196,0.01095204,2940.7,2940.2,1.70083]
[1644762071599,0.01095204,2940.7,2939.9,1.70082]
[1644762071898,0.9412146,2941.0,2939.9,1.70082]
[1644762071899,3.58480792,2940.9,2939.9,1.70082]
[1644762072098,0.01095257,2940.4,2939.6,1.70097]
[1644762072498,0.01095257,2940.4,2939.8,0.85053]
[1644762072699,0.9657751,2940.4,2939.8,0.85053]
[1644762072902,0.9657751,2940.4,2939.8,1.70106]
[1644762073098,0.9657751,2940.4,2939.6,1.70101]
[1644762073099,0.95482253,2940.4,2939.6,1.70101]
[1644762073301,0.01095293,2940.2,2939.6,1.70101]
[1644762073742,0.01095293,2940.2,2939.7,1.14823533]
[1644762073942,0.01095293,2940.2,2939.7,1.99877533]
[1644762074340,0.17,2941.0,2939.8,0.85053]
[1644762074542,0.17,2941.0,2939.8,5.80812374]
[1644762074543,0.0109532,2940.1,2939.8,5.80812374]
[1644762074741,0.0109532,2940.1,2939.8,4.10726374]
[1644762075141,0.0109532,2940.1,2939.9,0.85034]
[1644762075341,0.0109532,2940.1,2939.9,2.55113]
[1644762075646,0.01095311,2940.1,2939.9,2.55113]
[1644762075844,0.01095311,2940.1,2940.0,1.0]
[1644762076549,0.01095311,2940.1,2940.0,3.30069]
[1644762076850,3.57943726,2941.1,2940.3,0.85033]
[1644762077049,3.57943726,2941.1,2940.4,0.85034]
[1644762077700,3.57943726,2941.1,2940.4,0.80034]
[1644762077898,3.94807,2941.4,2940.4,0.80034]
[1644762077899,1.09253149,2941.0,2940.4,0.80034]
[1644762078100,0.01095177,2940.9,2940.4,1.65068]
[1644762078302,0.01095177,2940.9,2940.5,0.85031]
[1644762079102,1.09253149,2941.0,2940.5,0.85031]
[1644762079302,0.01095186,2940.8,2940.7,0.85026]
[1644762079803,0.01095186,2940.8,2940.4,1.70051]
[1644762080205,0.01095186,2940.8,2940.4,2.00051]
[1644762080402,3.5566548,2941.5,2940.4,4.00095]
[1644762080603,0.01095204,2940.7,2940.4,4.00095]
[1644762080805,0.01095204,2940.7,2940.5,1.0]
[1644762081047,0.01095204,2940.7,2940.5,1.85031]
[1644762081458,3.61054838,2941.5,2940.5,1.85031]
[1644762081459,1.1093898,2941.4,2940.5,1.85031]
[1644762081650,0.00569742,2940.7,2940.6,0.85027]
[1644762082655,1.1093898,2941.4,2940.6,0.85027]
[1644762082853,0.00569742,2940.8,2940.7,0.85027]
[1644762083955,1.1093898,2941.4,2940.7,0.85027]
[1644762084154,0.01095748,2940.9,2940.7,1.91752025]
[1644762084358,0.01095748,2940.9,2940.7,4.36778025]
[1644762085207,3.5,2942.1,2941.4,0.83682424]
[1644762085208,4.41321273,2942.1,2941.4,0.83682424]
[1644762085406,4.41321273,2942.1,2940.8,0.17]
[1644762085407,0.70597345,2941.3,2941.2,2.66563022]
[1644762085806,0.70597345,2941.3,2941.2,3.66563022]
[1644762086006,0.70597345,2941.3,2941.2,2.66563022]
[1644762086216,0.70597345,2941.3,2941.2,3.66563022]
[1644762086807,0.70597345,2941.3,2941.2,3.96563022]
[1644762090648,0.0109623,2941.4,2941.3,4.65]
[1644762090850,3.5,2942.6,2941.4,4.65]
[1644762091052,1.44610999,2942.5,2941.6,1.69932]
[1644762091251,1.44610999,2942.5,2941.7,0.33984]
[1644762091652,1.44610999,2942.5,2941.7,1.33984]
[1644762091852,3.5,2942.8,2942.3,1.6993]
[1644762092053,3.5,2942.8,2942.3,0.84965]
[1644762092054,1.44602647,2942.7,2942.3,0.84965]
[1644762092497,1.44602647,2942.7,2942.3,1.01959]
[1644762092698,7.6498,2943.0,2942.3,1.01959]
[1644762092699,1.44602647,2942.9,2942.3,1.01959]
[1644762092899,3.5,2943.1,2942.5,0.8497]
[1644762092900,1.44602647,2942.8,2942.5,0.8497]
[1644762093099,1.44602647,2942.7,2942.5,1.69931]
[1644762093304,1.44602647,2943.2,2942.5,1.69931]
[1644762093504,2.81040505,2943.6,2942.6,8.15]
[1644762093706,1.00976155,2943.9,2942.7,2.71804]
[1644762093707,0.64062012,2943.9,2942.7,2.71804]
[1644762094007,0.81042012,2944.0,2943.2,0.84949]
[1644762094201,0.81042012,2943.8,2942.7,3.54813]
[1644762094401,0.1698,2943.9,2942.7,2.54813]
[1644762094601,0.1698,2943.9,2942.8,1.0]
[1644762094801,0.91386688,2943.4,2943.0,0.1699]
[1644762095004,0.00568525,2943.4,2943.1,0.84944]
[1644762095402,0.00568525,2943.4,2943.1,2.69895]
[1644762095602,0.00568525,2943.4,2943.1,1.69895]
[1644762095804,0.00568525,2943.4,2943.2,1.6]
[1644762096049,1.03724518,2944.1,2943.3,3.39736]
[1644762096252,0.00568525,2943.4,2943.3,3.39736]
[1644762096449,0.00568525,2943.4,2942.7,3.54813]
[1644762096655,0.00568525,2943.4,2942.8,1.0]
[1644762096848,0.00568525,2943.4,2942.5,1.0]
[1644762097049,0.91658674,2943.3,2942.7,1.69904]
[1644762097248,0.91658674,2943.3,2943.1,0.08495]
[1644762097449,0.91658674,2943.3,2943.0,0.16989]
[1644762098249,0.91658674,2943.3,2943.0,1.01939]
[1644762098649,0.91658674,2943.3,2943.1,0.84949]
[1644762098650,0.9275474,2943.3,2943.1,0.84949]
[1644762099049,0.01096066,2943.3,2943.1,0.84949]
[1644762099451,0.1698,2944.1,2943.1,0.84949]
[1644762099695,3.40373813,2944.2,2943.3,0.16989]
[1644762099994,0.84217199,2943.8,2943.3,1.01934]
[1644762100195,0.84217199,2943.8,2943.3,0.16989]
[1644762100394,0.84217199,2943.8,2943.1,1.33978]
[1644762100597,0.84217199,2943.8,2943.1,0.33978]
[1644762101098,0.01096012,2943.6,2943.1,1.18928]
[1644762101901,0.84217199,2943.8,2943.1,1.18928]
[1644762102099,0.95863401,2943.3,2943.1,1.18928]
[1644762102699,0.95863401,2943.3,2942.6,0.16994]
[1644762102900,0.95863401,2943.3,2942.3,1.1698]
[1644762103099,0.95863401,2943.3,2942.2,5.36912]
[1644762103299,0.95863401,2943.3,2942.2,6.21886]
[1644762103557,0.01096102,2943.1,2942.2,6.21886]
[1644762103760,0.01096102,2943.1,2942.6,0.84559815]
[1644762104356,0.95863401,2943.3,2942.4,1.33985]
[1644762104559,0.0109612,2943.0,2942.4,1.33985]
[1644762104757,0.0109612,2943.0,2942.4,1.18954]
[1644762104957,0.0109612,2943.0,2942.4,2.18954]
[1644762105358,0.0109612,2943.0,2942.5,1.0196]
[1644762105557,0.95863401,2943.3,2942.4,1.66698782]
[1644762105759,0.01096146,2942.8,2942.4,1.66698782]
[1644762105959,0.01096146,2942.8,2942.4,0.66698782]
[1644762106159,0.01096146,2942.8,2942.4,1.66698782]
[1644762106360,0.01096146,2942.8,2942.5,1.0196]
[1644762106560,0.01096146,2942.8,2942.5,1.1894]
[1644762106760,0.95863401,2943.3,2942.5,2.1894]
[1644762106962,0.01096155,2942.8,2942.5,1.1894]
[1644762107204,0.01096155,2942.8,2942.6,0.84964]
[1644762107402,0.01096155,2942.8,2942.6,1.84964]
[1644762107601,0.01096155,2942.8,2942.6,1.0]
[1644762107804,0.01096155,2942.8,2942.5,1.1894]
[1644762108003,0.95863401,2943.3,2942.5,1.0196]
[1644762108205,0.01096146,2942.8,2942.5,1.0196]
[1644762108603,0.01096146,2942.8,2942.5,1.3196]
[1644762108803,0.01096146,2942.8,2942.5,1.0196]
[1644762109003,0.01096146,2942.8,2942.5,4.26987716]
[1644762109206,0.95863401,2943.3,2942.5,4.26987716]
[1644762109207,0.95863401,2943.3,2942.5,1.3196]
[1644762109407,0.01096155,2942.8,2942.7,1.01954]
[1644762109606,0.01096155,2942.8,2942.7,2.01606954]
[1644762110007,0.01096155,2942.8,2942.7,3.01606954]
[1644762110406,1.1274,2943.7,2942.7,2.46645954]
[1644762110619,1.1274,2943.7,2943.0,0.16992]
[1644762110957,4.92023,2944.2,2943.0,0.16992]
[1644762110958,1.16066681,2943.6,2943.0,0.16992]
[1644762111753,0.0056892,2943.4,2943.0,0.16992]
[1644762112757,1.16066681,2943.6,2943.0,0.16992]
[1644762113153,0.01096628,2943.3,2943.0,0.16992]
[1644762113754,0.01096628,2943.3,2943.0,5.18586358]
[1644762113954,0.1698,2944.1,2943.1,0.1699]
[1644762114155,1.44552662,2944.0,2943.1,1.1699]
[1644762114355,0.01096637,2943.3,2943.1,1.1699]
[1644762114801,0.01096637,2943.3,2943.2,0.84949]
[1644762115197,0.1698,2944.1,2943.2,1.84949]
[1644762115397,1.44549329,2944.0,2943.4,0.1699]
[1644762115605,0.1698,2943.9,2943.4,0.1699]
[1644762115797,1.44549329,2943.8,2943.4,0.1699]
[1644762116202,1.44549329,2944.0,2943.4,1.01933]
[1644762116403,1.00682323,2943.7,2943.4,1.01933]
[1644762116603,1.0177888,2943.7,2943.4,1.01933]
[1644762117705,1.00682323,2943.7,2943.4,1.01933]
[1644762117907,1.01778889,2943.7,2943.4,1.86875]
[1644762118104,0.01096566,2943.7,2943.4,1.86875]
[1644762118557,0.01096566,2943.7,2943.4,0.1699]
[1644762118761,0.0039799,2944.0,2943.4,0.1699]
[1644762118961,1.08779235,2943.8,2943.4,0.1699]
[1644762119163,1.45646331,2943.7,2943.4,0.1699]
[1644762119367,0.01096566,2943.7,2943.4,0.1699]
[1644762119763,0.01096566,2943.7,2943.4,1.01934]
[1644762119963,1.08779235,2943.8,2943.4,1.01934]
[1644762120165,1.45644891,2943.7,2943.4,1.01934]
[1644762120367,0.01096566,2943.7,2943.4,1.01934]
[1644762120964,0.01096566,2943.7,2943.4,1.86876]
[1644762121165,1.08779235,2943.8,2943.4,0.1699]
[1644762121166,1.44549807,2943.6,2943.4,0.1699]
[1644762121366,1.08779235,2943.8,2943.2,1.50958]
[1644762121367,1.44549807,2943.5,2943.2,1.50958]
[1644762121565,0.01096566,2943.7,2943.3,0.1699]
[1644762121766,1.4455168,2943.6,2943.3,0.1699]
[1644762122395,1.4455168,2943.6,2943.1,1.1698]
[1644762122596,1.4455168,2943.5,2943.0,1.48937]
[1644762122800,1.4455168,2943.5,2943.0,3.33893]
[1644762122999,1.4455168,2943.5,2943.0,2.33893]
[1644762123197,1.4455168,2943.5,2943.1,1.0]
[1644762123399,1.4455168,2943.5,2943.0,3.33893]
[1644762123599,1.4455168,2943.5,2943.0,2.33893]
[1644762123799,1.4564829,2943.4,2943.1,1.16992]
[1644762124102,0.0109661,2943.4,2943.0,1.0]
[1644762124299,0.0109661,2943.4,2942.8,2.0194]
[1644762124499,1.4456244,2943.3,2942.8,1.0194]
[1644762125098,0.92674901,2943.0,2942.8,1.0194]
[1644762125703,0.92674901,2943.0,2942.9,0.84959]
[1644762125953,0.92674901,2943.0,2942.8,1.32710669]
[1644762126851,0.92674901,2943.0,2942.9,0.84959]
[1644762127453,0.01096673,2943.1,2942.9,0.84959]
[1644762127652,0.01096673,2943.1,2943.0,0.8495]
[1644762127853,0.01096673,2943.1,2943.0,1.8495]
[1644762128254,1.45659502,2943.1,2943.0,1.8495]
[1644762128456,1.44562829,2943.1,2943.0,1.8495]
[1644762128658,1.44562829,2943.1,2943.0,2.69901]
[1644762129155,1.44562829,2943.1,2943.0,1.8495]
[1644762129800,1.44562829,2943.1,2943.0,2.0194]
[1644762130000,0.01096655,2943.2,2943.0,2.0194]
[1644762130404,1.44554259,2943.1,2943.0,2.0194]
[1644762131005,1.45650914,2943.2,2943.0,1.86894]
[1644762131206,1.45650914,2943.2,2942.3,5.87348]
[1644762131207,1.44554259,2943.1,2941.9,2.79866]
[1644762131405,1.44554259,2943.1,2942.4,0.1698]
[1644762131805,1.44554259,2943.0,2941.9,0.25]
[1644762132005,1.44554259,2943.0,2941.6,0.1698]
[1644762132006,2.29543259,2942.9,2941.6,0.1698]
[1644762132206,0.89345414,2941.9,2941.6,0.84992]
[1644762132408,0.1698,2942.8,2941.7,0.16999]
[1644762132709,0.84992,2942.6,2941.7,0.16999]
[1644762132908,1.445903,2942.5,2941.7,0.16999]
[1644762133111,1.445903,2942.5,2941.8,0.84986]
[1644762133307,1.445903,2942.5,2941.7,0.16999]
[1644762133308,1.445903,2942.4,2941.7,0.16999]
[1644762133547,0.91363366,2941.9,2941.7,0.16999]
[1644762133951,1.4460997,2941.8,2941.6,0.1698]
[1644762134750,0.01096898,2941.8,2941.6,0.1698]
[1644762135148,0.01096898,2941.8,2941.3,0.17001]
[1644762135755,0.91363366,2941.9,2941.3,0.17001]
[1644762135954,0.01096925,2941.7,2941.3,0.17001]
[1644762136153,0.01096925,2941.7,2941.2,0.1698]
[1644762136854,0.91363366,2941.9,2941.2,0.1698]
[1644762137054,0.01096943,2941.6,2941.1,0.33982]
[1644762137298,0.01096943,2941.6,2941.1,1.18985]
[1644762137706,0.01096943,2941.6,2941.1,0.33982]
[1644762137906,0.01096943,2941.6,2941.1,0.17002]
[1644762138105,0.91363366,2941.9,2941.1,0.17002]
[1644762138310,0.91363366,2941.9,2941.0,0.1698]
[1644762138311,0.01096942,2941.5,2941.0,0.1698]
[1644762138507,0.01096942,2941.5,2940.7,0.1698]
[1644762138705,0.01096942,2941.5,2940.7,1.6]
[1644762139305,0.1698,2941.8,2940.7,1.6]
[1644762139507,0.01096894,2941.5,2940.6,3.31044]
[1644762139707,1.02106669,2941.4,2940.6,0.76006]
[1644762139906,1.02106669,2941.4,2940.6,0.17]
[1644762140306,1.44646213,2941.3,2940.6,0.17]